fUST/lending_fUST_20240611
["ID","MTS","AMOUNT","RATE_DAILY","PERIOD"]
[329000290,1718051449706,-633.61,0.00019726,2]
[329000291,1718051449716,-500.0,0.00019726,2]
[329000292,1718051449731,-500.0,0.00019726,2]
[329000293,1718051449747,-151.0,0.00019726,2]
[329000294,1718051449758,-151.0,0.00019726,2]
[329000295,1718051449768,-184.379825,0.00019726,2]
[329000296,1718051449780,-184.379825,0.00019726,2]
[329000297,1718051449795,-500.0,0.00019726,2]
[329000298,1718051449805,-500.0,0.00019726,2]
[329000299,1718051449815,-500.0,0.00019726,2]
[329000300,1718051449826,-500.0,0.00019726,2]
[329000301,1718051449840,-1100.74,0.00019726,2]
[329000302,1718051449853,-524.83,0.00019726,2]
[329000303,1718051449864,-500.0,0.00019726,2]
[329000304,1718051449877,-519.10963546,0.00019726,2]
[329000305,1718051449888,-500.0,0.00019726,2]
[329000306,1718051449901,-500.0,0.00019726,2]
[329000307,1718051449910,-1034.84185632,0.00019726,2]
[329000308,1718051450015,-1482.49814368,0.00019726,2]
[329000309,1718051450026,-478.85088236,0.00019726,2]
[329000310,1718051450039,-149.70911764,0.00019726,2]
[329000311,1718051450050,-151.0,0.00019726,2]
[329000312,1718051450061,-1783.08,0.00019726,2]
[329000313,1718051450071,-500.0,0.00019726,2]
[329000314,1718051450081,-500.0,0.00019726,2]
[329000315,1718051450091,-546.13,0.00019726,2]
[329000316,1718051450101,-500.0,0.00019726,2]
[329000317,1718051450111,-326.91482797,0.00019726,2]
[329000318,1718051450122,-500.0,0.00019726,2]
[329000319,1718051450132,-320.0204181,0.00019726,2]
[329000320,1718051450145,-179.9795819,0.00019726,2]
[329000321,1718051450155,-151.0,0.00019726,2]
[329000322,1718051450167,-1714.44,0.00019726,2]
[329000323,1718051450177,-151.0,0.00019726,2]
[329000324,1718051450188,-500.0,0.00019726,2]
[329000325,1718051450199,-500.0,0.00019726,2]
[329000326,1718051450209,-500.0,0.00019726,2]
[329000327,1718051450219,-8725.61,0.00019726,2]
[329000328,1718051450229,-500.0,0.00019726,2]
[329000329,1718051450240,-1160.22,0.00019726,2]
[329000330,1718051450250,-500.0,0.00019726,2]
[329000331,1718051450260,-553.51,0.00019726,2]
[329000332,1718051450271,-500.0,0.00019726,2]
[329000333,1718051450282,-975.01,0.00019726,2]
[329000334,1718051450294,-500.0,0.00019726,2]
[329000335,1718051450304,-521.05,0.00019726,2]
[329000336,1718051450316,-500.0,0.00019726,2]
[329000337,1718051450327,-500.0,0.00019726,2]
[329000338,1718051450338,-2345.97,0.00019726,2]
[329000339,1718051450349,-500.0,0.00019726,2]
[329000340,1718051450366,-500.0,0.00019726,2]
[329000341,1718051450378,-500.0,0.00019726,2]
[329000342,1718051450390,-500.0,0.00019726,2]
[329000343,1718051450402,-500.0,0.00019726,2]
[329000344,1718051450415,-687.55,0.00019726,2]
[329000345,1718051450427,-500.0,0.00019726,2]
[329000346,1718051450439,-500.0,0.00019726,2]
[329000347,1718051450451,-500.0,0.00019726,2]
[329000348,1718051450462,-638.56,0.00019726,2]
[329000349,1718051450474,-1127.72,0.00019726,2]
[329000350,1718051450487,-500.0,0.00019726,2]
[329000351,1718051450497,-500.0,0.00019726,2]
[329000352,1718051450508,-986.16,0.00019726,2]
[329000353,1718051450518,-500.0,0.00019726,2]
[329000354,1718051450528,-500.0,0.00019726,2]
[329000355,1718051450539,-500.0,0.00019726,2]
[329000356,1718051450550,-500.0,0.00019726,2]
[329000357,1718051450561,-500.0,0.00019726,2]
[329000358,1718051450573,-500.0,0.00019726,2]
[329000359,1718051450584,-743.28,0.00019726,2]
[329000360,1718051450595,-500.0,0.00019726,2]
[329000361,1718051450605,-154.685269,0.00019726,2]
[329000362,1718051450616,-343.7965023,0.00019726,2]
[329000363,1718051450626,-420.0,0.00019775,2]
[329000364,1718051450636,-3157.06876772,0.00019782,2]
[329000365,1718051450669,-1081.96867196,0.00019782,2]
[329000366,1718051450680,-151.0,0.000199,2]
[329000367,1718051450693,-222.76516151,0.00019999,2]
[329000368,1718051450706,-1115.98840214,0.0002,2]
[329000369,1718051450719,-9500.51899678,0.0002,2]
[329000370,1718051450729,-932.35426985,0.0002,2]
[329000371,1718051450740,-151.0,0.0002,2]
[329000372,1718051450751,-500.0,0.0002,2]
[329000373,1718051450764,-500.0,0.0002,2]
[329000374,1718051450774,-500.0,0.0002,2]
[329000375,1718051450785,-500.0,0.0002,2]
[329000376,1718051450797,-151.0,0.0002,2]
[329000377,1718051450808,-151.0,0.0002,2]
[329000378,1718051450819,-500.0,0.0002,2]
[329000379,1718051450830,-175.937616,0.0002,2]
[329000380,1718051450846,-175.937616,0.0002,2]
[329000381,1718051450862,-500.0,0.0002,2]
[329000382,1718051450877,-500.0,0.0002,2]
[329000383,1718051450889,-500.0,0.0002,2]
[329000384,1718051450900,-151.0,0.0002,2]
[329000385,1718051450911,-500.0,0.0002,2]
[329000386,1718051450926,-500.0,0.0002,2]
[329000387,1718051450938,-500.0,0.0002,2]
[329000388,1718051450948,-231.66,0.0002,2]
[329000389,1718051450960,-151.0,0.0002,2]
[329000390,1718051450970,-500.0,0.0002,2]
[329000391,1718051450984,-500.0,0.0002,2]
[329000392,1718051450994,-708.13,0.0002,2]
[329000393,1718051451005,-500.0,0.0002,2]
[329000394,1718051451015,-151.0,0.0002,2]
[329000395,1718051451026,-500.0,0.0002,2]
[329000396,1718051451036,-500.0,0.0002,2]
[329000397,1718051451047,-227.623481,0.0002,2]
[329000398,1718051451058,-227.623481,0.0002,2]
[329000399,1718051451068,-151.0,0.0002,2]
[329000400,1718051451079,-566.03,0.0002,2]
[329000401,1718051451090,-500.0,0.0002,2]
[329000402,1718051451100,-633.61,0.0002,2]
[329000403,1718051451111,-500.0,0.0002,2]
[329000404,1718051451121,-500.0,0.0002,2]
[329000405,1718051451131,-500.0,0.0002,2]
[329000406,1718051451142,-500.0,0.0002,2]
[329000407,1718051451152,-1100.74,0.0002,2]
[329000408,1718051451162,-524.83,0.0002,2]
[329000409,1718051451173,-500.0,0.0002,2]
[329000410,1718051451183,-500.0,0.0002,2]
[329000411,1718051451193,-2517.34,0.0002,2]
[329000412,1718051451204,-628.56,0.0002,2]
[329000413,1718051451214,-151.0,0.0002,2]
[329000414,1718051451225,-1783.08,0.0002,2]
[329000415,1718051451235,-500.0,0.0002,2]
[329000416,1718051451245,-500.0,0.0002,2]
[329000417,1718051451255,-500.0,0.0002,2]
[329000418,1718051451266,-550.28652042,0.0002,2]
[329000419,1718051451275,-151.0,0.0002,2]
[329000420,1718051451286,-1714.44,0.0002,2]
[329000421,1718051451300,-151.0,0.0002,2]
[329000422,1718051451311,-500.0,0.0002,2]
[329000423,1718051451324,-500.0,0.0002,2]
[329000424,1718051451337,-500.0,0.0002,2]
[329000425,1718051451347,-8725.61,0.0002,2]
[329000426,1718051451358,-536.60051961,0.0002,2]
[329000427,1718051451368,-1160.22,0.0002,2]
[329000428,1718051451380,-500.0,0.0002,2]
[329000429,1718051451393,-553.51,0.0002,2]
[329000430,1718051451403,-500.0,0.0002,2]
[329000431,1718051451413,-975.01,0.0002,2]
[329000432,1718051451422,-148.6116828,0.0002,2]
[329000433,1718051451445,-500.0,0.00019178,2]
[329000434,1718051451455,-351.3883172,0.0002,2]
[329000435,1718051451466,-521.05,0.0002,2]
[329000436,1718051451476,-500.0,0.0002,2]
[329000437,1718051451486,-2345.97,0.0002,2]
[329000438,1718051451497,-500.0,0.0002,2]
[329000439,1718051451508,-500.0,0.0002,2]
[329000440,1718051451518,-500.0,0.0002,2]
[329000441,1718051451528,-500.0,0.0002,2]
[329000442,1718051451539,-500.0,0.0002,2]
[329000443,1718051451550,-687.55,0.0002,2]
[329000444,1718051451560,-500.0,0.0002,2]
[329000445,1718051451570,-500.0,0.0002,2]
[329000446,1718051451580,-500.0,0.0002,2]
[329000447,1718051451597,-1127.72,0.0002,2]
[329000448,1718051451608,-594.93,0.0002,2]
[329000449,1718051451624,-500.0,0.0002,2]
[329000450,1718051451636,-986.16,0.0002,2]
[329000451,1718051451646,-500.0,0.0002,2]
[329000452,1718051451656,-500.0,0.0002,2]
[329000453,1718051451667,-500.0,0.0002,2]
[329000454,1718051451677,-500.0,0.0002,2]
[329000455,1718051451688,-743.28,0.0002,2]
[329000456,1718051451699,-385.52879901,0.0002,2]
[329000457,1718051451712,-114.47120099,0.0002,2]
[329000458,1718051451722,-151.0,0.00020273,2]
[329000459,1718051451735,-258.609238,0.00020273,2]
[329000460,1718051451749,-636.99,0.00020273,2]
[329000461,1718051451762,-500.0,0.00020273,2]
[329000462,1718051451773,-606.38517074,0.00020273,2]
[329000463,1718051451784,-151.0,0.00020273,2]
[329000464,1718051451795,-500.0,0.00020273,2]
[329000465,1718051451807,-175.937616,0.00020273,2]
[329000466,1718051451817,-175.937616,0.00020273,2]
[329000467,1718051451830,-356.86,0.00020273,2]
[329000468,1718051451840,-156.11116926,0.00020273,2]
[329000469,1718051451850,-151.0,0.00020273,2]
[329000470,1718051451861,-500.0,0.00020273,2]
[329000471,1718051451871,-257.07,0.00020273,2]
[329000472,1718051451881,-500.0,0.00020273,2]
[329000473,1718051451891,-500.0,0.00020273,2]
[329000474,1718051451903,-500.0,0.00020273,2]
[329000475,1718051451913,-708.13,0.00020273,2]
[329000476,1718051451924,-500.0,0.00020273,2]
[329000477,1718051451934,-151.0,0.00020273,2]
[329000478,1718051451944,-500.0,0.00020273,2]
[329000479,1718051451955,-227.623481,0.00020273,2]
[329000480,1718051451965,-227.623481,0.00020273,2]
[329000481,1718051451980,-500.0,0.00020273,2]
[329000482,1718051451991,-151.0,0.00020273,2]
[329000483,1718051452001,-633.61,0.00020273,2]
[329000484,1718051452011,-572.26,0.00020273,2]
[329000485,1718051452023,-500.0,0.00020273,2]
[329000486,1718051452041,-184.379825,0.00020273,2]
[329000487,1718051452051,-184.379825,0.00020273,2]
[329000488,1718051452060,-500.0,0.00020273,2]
[329000489,1718051452070,-500.0,0.00020273,2]
[329000490,1718051452082,-1100.74,0.00020273,2]
[329000491,1718051452200,-524.83,0.00020273,2]
[329000492,1718051452211,-500.0,0.00020273,2]
[329000493,1718051452221,-2517.34,0.00020273,2]
[329000494,1718051452231,-628.56,0.00020273,2]
[329000495,1718051452241,-1783.08,0.00020273,2]
[329000496,1718051452251,-500.0,0.00020273,2]
[329000497,1718051452261,-500.0,0.00020273,2]
[329000498,1718051452271,-500.0,0.00020273,2]
[329000499,1718051452282,-1714.44,0.00020273,2]
[329000500,1718051452295,-500.0,0.00020273,2]
[329000501,1718051452306,-500.0,0.00020273,2]
[329000502,1718051452317,-8725.61,0.00020273,2]
[329000503,1718051452327,-1160.22,0.00020273,2]
[329000504,1718051452338,-500.0,0.00020273,2]
[329000505,1718051452349,-553.51,0.00020273,2]
[329000506,1718051452359,-975.01,0.00020273,2]
[329000507,1718051452374,-500.0,0.00020273,2]
[329000508,1718051452390,-521.05,0.00020273,2]
[329000509,1718051452400,-2345.97,0.00020273,2]
[329000510,1718051452411,-500.0,0.00020273,2]
[329000511,1718051452424,-500.0,0.00020273,2]
[329000512,1718051452442,-500.0,0.00020273,2]
[329000513,1718051452454,-687.55,0.00020273,2]
[329000514,1718051452464,-500.0,0.00020273,2]
[329000515,1718051452475,-500.0,0.00020273,2]
[329000516,1718051452492,-500.0,0.00020273,2]
[329000517,1718051452502,-1127.72,0.00020273,2]
[329000518,1718051452518,-498.3936572,0.00020273,2]
[329000519,1718051452530,-986.16,0.00020273,2]
[329000520,1718051452559,-500.0,0.00020273,2]
[329000521,1718051452569,-500.0,0.00020273,2]
[329000522,1718051452580,-559.96,0.00020273,2]
[329000523,1718051452591,-500.0,0.00020273,2]
[329000524,1718051452601,-743.28,0.00020273,2]
[329000525,1718051452617,-500.0,0.00020273,2]
[329000526,1718051452628,-225.1695884,0.00020447,2]
[329000527,1718051452651,-13481.93972849,0.00020447,2]
[329000528,1718051452661,-151.0,0.00020447,2]
[329000529,1718051452672,-151.0,0.00020447,2]
[329000530,1718051452682,-151.0,0.00020447,2]
[329000531,1718051452694,-254.0,0.000205,2]
[329000532,1718051452705,-500.0,0.00020547,2]
[329000533,1718051452715,-500.0,0.00020547,2]
[329000534,1718051452732,-500.0,0.00020547,2]
[329000535,1718051452742,-265.75,0.00020547,2]
[329000536,1718051452754,-500.0,0.00020547,2]
[329000537,1718051452764,-500.0,0.00020547,2]
[329000538,1718051452775,-708.13,0.00020547,2]
[329000539,1718051452787,-451.70000901,0.00020547,2]
[329000540,1718051452801,-392.14,0.00020547,2]
[329000541,1718051452812,-151.0,0.00020547,2]
[329000542,1718051452822,-633.61,0.00020547,2]
[329000543,1718051452835,-184.379825,0.00020547,2]
[329000544,1718051452848,-184.379825,0.00020547,2]
[329000545,1718051452860,-500.0,0.00020547,2]
[329000546,1718051452871,-500.0,0.00020547,2]
[329000547,1718051452882,-1100.74,0.00020547,2]
[329000548,1718051452893,-524.83,0.00020547,2]
[329000549,1718051452903,-500.0,0.00020547,2]
[329000550,1718051452913,-2517.34,0.00020547,2]
[329000551,1718051452923,-628.56,0.00020547,2]
[329000552,1718051452933,-1783.08,0.00020547,2]
[329000553,1718051452943,-500.0,0.00020547,2]
[329000554,1718051452955,-500.0,0.00020547,2]
[329000555,1718051452967,-1714.44,0.00020547,2]
[329000556,1718051452984,-500.0,0.00020547,2]
[329000557,1718051452994,-8725.61,0.00020547,2]
[329000558,1718051453004,-1160.22,0.00020547,2]
[329000559,1718051453016,-500.0,0.00020547,2]
[329000560,1718051453026,-553.51,0.00020547,2]
[329000561,1718051453047,-975.01,0.00020547,2]
[329000562,1718051453059,-500.0,0.00020547,2]
[329000563,1718051453069,-521.05,0.00020547,2]
[329000564,1718051453080,-2345.97,0.00020547,2]
[329000565,1718051453098,-500.0,0.00020547,2]
[329000566,1718051453110,-500.0,0.00020547,2]
[329000567,1718051453125,-500.0,0.00020547,2]
[329000568,1718051453135,-687.55,0.00020547,2]
[329000569,1718051453154,-500.0,0.00020547,2]
[329000570,1718051453165,-500.0,0.00020547,2]
[329000571,1718051453175,-500.0,0.00020547,2]
[329000572,1718051453186,-1127.72,0.00020547,2]
[329000573,1718051453198,-986.16,0.00020547,2]
[329000574,1718051453208,-500.0,0.00020547,2]
[329000575,1718051453219,-500.0,0.00020547,2]
[329000576,1718051453230,-743.28,0.00020547,2]
[329000577,1718051453242,-500.0,0.00020547,2]
[329000578,1718051453252,-307.8,0.00020639,5]
[329000579,1718051453263,-151.0,0.00020821,2]
[329000580,1718051453278,-500.0,0.00020821,2]
[329000581,1718051453326,-151.0,0.00020821,2]
[329000582,1718051453345,-500.0,0.00020821,2]
[329000583,1718051453364,-175.937616,0.00020821,2]
[329000584,1718051453381,-175.937616,0.00020821,2]
[329000585,1718051453399,-198.287527,0.00020821,2]
[329000586,1718051453414,-500.0,0.00020821,2]
[329000587,1718051453436,-500.0,0.00020821,2]
[329000588,1718051453455,-500.0,0.00020821,2]
[329000589,1718051453466,-708.13,0.00020821,2]
[329000590,1718051453480,-151.0,0.00020821,2]
[329000591,1718051453494,-227.623481,0.00020821,2]
[329000592,1718051453507,-227.623481,0.00020821,2]
[329000593,1718051453524,-633.61,0.00020821,2]
[329000594,1718051453544,-500.0,0.00020821,2]
[329000595,1718051453560,-500.0,0.00020821,2]
[329000596,1718051453571,-1100.74,0.00020821,2]
[329000597,1718051453581,-524.83,0.00020821,2]
[329000598,1718051453592,-500.0,0.00020821,2]
[329000599,1718051453603,-2517.34,0.00020821,2]
[329000600,1718051453614,-628.56,0.00020821,2]
[329000601,1718051453626,-151.0,0.00020821,2]
[329000602,1718051453638,-1783.08,0.00020821,2]
[329000603,1718051453648,-500.0,0.00020821,2]
[329000604,1718051453658,-500.0,0.00020821,2]
[329000605,1718051453669,-151.0,0.00020821,2]
[329000606,1718051453681,-151.0,0.00020821,2]
[329000607,1718051453692,-1714.44,0.00020821,2]
[329000608,1718051453703,-187.45816986,0.00020821,2]
[329000609,1718051453713,-8725.61,0.00020821,2]
[329000610,1718051453723,-1160.22,0.00020821,2]
[329000611,1718051453735,-500.0,0.00020821,2]
[329000612,1718051453745,-553.51,0.00020821,2]
[329000613,1718051453754,-975.01,0.00020821,2]
[329000614,1718051453765,-500.0,0.00020821,2]
[329000615,1718051453775,-521.05,0.00020821,2]
[329000616,1718051453786,-2345.97,0.00020821,2]
[329000617,1718051453796,-500.0,0.00020821,2]
[329000618,1718051453807,-500.0,0.00020821,2]
[329000619,1718051453819,-500.0,0.00020821,2]
[329000620,1718051453829,-687.55,0.00020821,2]
[329000621,1718051453843,-500.0,0.00020821,2]
[329000622,1718051453864,-428.01642412,0.00020821,2]
[329000623,1718051453875,-601.47295611,0.00020821,2]
[329000624,1718051453890,-1127.72,0.00020821,2]
[329000625,1718051453903,-986.16,0.00020821,2]
[329000626,1718051453913,-500.0,0.00020821,2]
[329000627,1718051453932,-743.28,0.00020821,2]
[329000628,1718051453944,-471.08100537,0.00021,2]
[329000629,1718051453959,-393.98121283,0.00021,2]
[329000630,1718051453974,-620.05068733,0.00021011,2]
[329000631,1718051453987,-500.0,0.00021095,2]
[329000632,1718051454009,-500.0,0.00021095,2]
[329000633,1718051454021,-243.43903098,0.00021095,2]
[329000634,1718051454032,-500.0,0.00021095,2]
[329000635,1718051454060,-500.0,0.00021095,2]
[329000636,1718051454074,-708.13,0.00021095,2]
[329000637,1718051454086,-151.0,0.00021095,2]
[329000638,1718051454096,-227.623481,0.00021095,2]
[329000639,1718051454107,-227.623481,0.00021095,2]
[329000640,1718051454119,-151.0,0.00021095,2]
[329000641,1718051454129,-633.61,0.00021095,2]
[329000642,1718051454140,-184.379825,0.00021095,2]
[329000643,1718051454151,-184.379825,0.00021095,2]
[329000644,1718051454168,-409.0174592,0.00021095,2]
[329000645,1718051454181,-500.0,0.00021095,2]
[329000646,1718051454193,-1100.74,0.00021095,2]
[329000647,1718051454204,-524.83,0.00021095,2]
[329000648,1718051454214,-228.47534252,0.00021095,2]
[329000649,1718051454235,-271.52465748,0.00021095,2]
[329000650,1718051454246,-2517.34,0.00021095,2]
[329000651,1718051454258,-628.56,0.00021095,2]
[329000652,1718051454269,-1783.08,0.00021095,2]
[329000653,1718051454296,-500.0,0.00021095,2]
[329000654,1718051454308,-500.0,0.00021095,2]
[329000655,1718051454319,-1714.44,0.00021095,2]
[329000656,1718051454329,-2225.2539723,0.00021095,2]
[329000657,1718051454436,-1050.28244223,0.00021095,2]
[329000658,1718051454451,-2424.3087925,0.00021095,2]
[329000660,1718052379102,13203.48252537,0.00029144,120]
[329000695,1718052605789,292.39507624,0.00012712,2]
[329000750,1718052633151,-3120.09651569,0.00016813,4]
[329000751,1718052633161,-2113.8300801,0.00016814,2]
[329000752,1718052633172,-319.2038835,0.00016817,2]
[329000753,1718052633182,-300.0,0.00016951,2]
[329000754,1718052633192,-1668.86952073,0.00016952,2]
[329000755,1718052633205,-335.93872547,0.00016952,2]
[329000756,1718052633230,-3542.83228628,0.00016952,2]
[329000814,1718052639219,-3709.62830177,0.00016952,2]
[329000816,1718052639332,-15642.73116575,0.00016952,2]
[329000818,1718052639343,-206.541447,0.00017269,2]
[329000819,1718052639354,-1714.10258302,0.00018157,7]
[329000820,1718052639365,-1322.89844075,0.00018166,2]
[329000821,1718052639376,-420.0,0.00018646,2]
[329000822,1718052639387,-520.50727614,0.000189,2]
[329000823,1718052639399,-208.23501257,0.00019078,2]
[329000824,1718052639410,-500.0,0.00019178,2]
[329000825,1718052639422,-567.36300763,0.00019178,2]
[329000826,1718052639432,-314.62892531,0.00019178,2]
[329000827,1718052639446,-500.0,0.00019178,2]
[329000828,1718052639463,-500.0,0.00019178,2]
[329000829,1718052639473,-500.0,0.00019178,2]
[329000830,1718052639485,-500.0,0.00019178,2]
[329000831,1718052639496,-500.0,0.00019178,2]
[329000832,1718052639507,-500.0,0.00019178,2]
[329000833,1718052639518,-500.0,0.00019178,2]
[329000834,1718052639530,-500.0,0.00019178,2]
[329000835,1718052639545,-500.0,0.00019178,2]
[329000836,1718052639556,-500.0,0.00019178,2]
[329000837,1718052639567,-500.0,0.00019178,2]
[329000838,1718052639577,-500.0,0.00019178,2]
[329000839,1718052639589,-500.0,0.00019178,2]
[329000840,1718052639600,-500.0,0.00019178,2]
[329000841,1718052639614,-500.0,0.00019178,2]
[329000842,1718052639624,-500.0,0.00019178,2]
[329000843,1718052639634,-500.0,0.00019178,2]
[329000844,1718052639644,-500.0,0.00019178,2]
[329000845,1718052639656,-500.0,0.00019178,2]
[329000846,1718052639668,-302.85852039,0.00019178,2]
[329000847,1718052639680,-500.0,0.00019178,2]
[329000848,1718052639692,-500.0,0.00019178,2]
[329000849,1718052639703,-500.0,0.00019178,2]
[329000850,1718052639713,-500.0,0.00019178,2]
[329000851,1718052639724,-500.0,0.00019178,2]
[329000852,1718052639735,-500.0,0.00019178,2]
[329000853,1718052639752,-500.0,0.00019178,2]
[329000854,1718052639767,-500.0,0.00019178,2]
[329000855,1718052639778,-500.0,0.00019178,2]
[329000856,1718052639788,-500.0,0.00019178,2]
[329000857,1718052639808,-500.0,0.00019178,2]
[329000858,1718052639819,-500.0,0.00019178,2]
[329000859,1718052639830,-500.0,0.00019178,2]
[329000860,1718052639841,-500.0,0.00019178,2]
[329000861,1718052639852,-500.0,0.00019178,2]
[329000862,1718052639863,-500.0,0.00019178,2]
[329000863,1718052639873,-500.0,0.00019178,2]
[329000864,1718052639884,-500.0,0.00019178,2]
[329000865,1718052639894,-217.72873552,0.00019178,2]
[329000866,1718052639904,-511.45452275,0.00019178,2]
[329000867,1718052639914,-500.0,0.00019178,2]
[329000868,1718052639924,-200.09577122,0.00019178,2]
[329000869,1718052639935,-286.77429263,0.00019178,2]
[329000870,1718052639945,-500.0,0.00019178,2]
[329000871,1718052639955,-500.0,0.00019178,2]
[329000872,1718052639966,-500.0,0.00019178,2]
[329000873,1718052639977,-500.0,0.00019178,2]
[329000874,1718052639988,-500.0,0.00019178,2]
[329000875,1718052640000,-500.0,0.00019178,2]
[329000876,1718052640016,-500.0,0.00019178,2]
[329000877,1718052640028,-500.0,0.00019178,2]
[329000878,1718052640038,-500.0,0.00019178,2]
[329000879,1718052640049,-500.0,0.00019178,2]
[329000880,1718052640061,-500.0,0.00019178,2]
[329000881,1718052640072,-500.0,0.00019178,2]
[329000882,1718052640082,-585.28692475,0.00019178,2]
[329000883,1718052640093,-500.0,0.00019178,2]
[329000884,1718052640104,-500.0,0.00019178,2]
[329000885,1718052640117,-500.0,0.00019178,2]
[329000886,1718052640128,-500.0,0.00019178,2]
[329000887,1718052640139,-500.0,0.00019178,2]
[329000888,1718052640150,-500.0,0.00019178,2]
[329000889,1718052640161,-500.0,0.00019178,2]
[329000890,1718052640173,-500.0,0.00019178,2]
[329000891,1718052640183,-500.0,0.00019178,2]
[329000892,1718052640194,-500.0,0.00019178,2]
[329000893,1718052640204,-500.0,0.00019178,2]
[329000894,1718052640215,-509.49331624,0.00019178,2]
[329000895,1718052640226,-500.0,0.00019178,2]
[329000896,1718052640237,-500.0,0.00019178,2]
[329000897,1718052640249,-500.0,0.00019178,2]
[329000898,1718052640260,-386.36216828,0.00019178,2]
[329000899,1718052640271,-500.0,0.00019178,2]
[329000900,1718052640282,-500.0,0.00019178,2]
[329000901,1718052640293,-500.0,0.00019178,2]
[329000902,1718052640308,-500.0,0.00019178,2]
[329000903,1718052640322,-500.0,0.00019178,2]
[329000904,1718052640334,-500.0,0.00019178,2]
[329000905,1718052640345,-500.0,0.00019178,2]
[329000906,1718052640357,-500.0,0.00019178,2]
[329000907,1718052640368,-500.0,0.00019178,2]
[329000908,1718052640379,-500.0,0.00019178,2]
[329000909,1718052640401,-500.0,0.00019178,2]
[329000910,1718052640422,-500.0,0.00019178,2]
[329000911,1718052640433,-500.0,0.00019178,2]
[329000912,1718052640444,-500.0,0.00019178,2]
[329000913,1718052640455,-500.0,0.00019178,2]
[329000914,1718052640465,-500.0,0.00019178,2]
[329000915,1718052640475,-500.0,0.00019178,2]
[329000916,1718052640486,-521.86650531,0.00019178,2]
[329000917,1718052640496,-500.0,0.00019178,2]
[329000918,1718052640506,-264.0991326,0.00019178,2]
[329000919,1718052640516,-500.0,0.00019178,2]
[329000920,1718052640527,-500.0,0.00019178,2]
[329000921,1718052640538,-500.0,0.00019178,2]
[329000922,1718052640549,-500.0,0.00019178,2]
[329000923,1718052640563,-512.15863805,0.00019178,2]
[329000924,1718052640574,-500.0,0.00019178,2]
[329000925,1718052640586,-315.49007819,0.00019178,2]
[329000926,1718052640596,-500.0,0.00019178,2]
[329000927,1718052640607,-500.0,0.00019178,2]
[329000928,1718052640618,-500.0,0.00019178,2]
[329000929,1718052640628,-512.2667002,0.00019178,2]
[329000930,1718052640639,-500.0,0.00019178,2]
[329000931,1718052640650,-500.0,0.00019178,2]
[329000932,1718052640662,-500.0,0.00019178,2]
[329000933,1718052640673,-500.0,0.00019178,2]
[329000934,1718052640688,-500.0,0.00019178,2]
[329000935,1718052640699,-500.0,0.00019178,2]
[329000936,1718052640710,-500.0,0.00019178,2]
[329000937,1718052640723,-500.0,0.00019178,2]